bitfinex-derivatives/quotes_BTCF0:USTF0_20250130
["timestamp","ask_amount","ask_price","bid_price","bid_amount"]
[1738256621478,0.32707014,105530.0,105520.0,0.223885]
[1738256622863,0.19629186,105530.0,105520.0,0.223885]
[1738256623066,0.19629186,105530.0,105520.0,0.32666328]
[1738256623469,0.29907014,105530.0,105520.0,0.00404]
[1738256623667,0.65987014,105530.0,105520.0,0.00404]
[1738256624779,0.74402651,105530.0,105520.0,0.00404]
[1738256629581,0.77207864,105530.0,105520.0,0.00404]
[1738256630775,0.77207864,105530.0,105520.0,0.03714]
[1738256633583,0.82836456,105530.0,105520.0,0.03714]
[1738256634177,0.82836456,105530.0,105520.0,0.0331]
[1738256634370,0.82836456,105530.0,105460.0,0.3608]
[1738256634371,0.78899784,105530.0,105460.0,0.3608]
[1738256634571,0.78899784,105530.0,105470.0,0.612135]
[1738256634572,0.65318128,105490.0,105470.0,0.612135]
[1738256634773,0.68090128,105490.0,105470.0,0.71491328]
[1738256635179,0.189617,105480.0,105470.0,0.612135]
[1738256635376,0.49129828,105490.0,105470.0,0.612135]
[1738256635377,0.68090428,105490.0,105470.0,0.71491328]
[1738256635585,0.0278619,105490.0,105480.0,0.550417]
[1738256635782,0.0278619,105490.0,105480.0,0.65319528]
[1738256635783,0.0001419,105490.0,105480.0,0.65319528]
[1738256636083,0.19096731,105520.0,105500.0,0.189571]
[1738256636277,0.00142231,105520.0,105510.0,0.3924]
[1738256636477,0.11147224,105520.0,105510.0,0.3924]
[1738256636878,0.11147224,105520.0,105510.0,0.581963]
[1738256637485,0.00142231,105520.0,105510.0,0.612363]
[1738256637688,0.10520059,105520.0,105510.0,0.612363]
[1738256638489,0.00242231,105520.0,105510.0,0.612363]
[1738256638781,0.0001419,105530.0,105520.0,0.189545]
[1738256638982,0.10292018,105530.0,105520.0,0.189545]
[1738256639186,0.29244718,105530.0,105520.0,0.189545]
[1738256640286,0.29344718,105530.0,105520.0,0.189545]
[1738256640481,0.1906689,105530.0,105520.0,0.189545]
[1738256640682,0.0001419,105530.0,105520.0,0.65312328]
[1738256640995,0.3608,105540.0,105530.0,0.189527]
[1738256641181,0.550309,105540.0,105530.0,0.189527]
[1738256641380,0.189509,105540.0,105530.0,0.189527]
[1738256642193,0.82226602,105540.0,105530.0,0.189527]
[1738256642383,0.46146602,105540.0,105530.0,0.189527]
[1738256642579,0.35868774,105540.0,105530.0,0.189527]
[1738256642784,0.71948774,105540.0,105530.0,0.189527]
[1738256643187,0.82226602,105540.0,105530.0,0.189527]
[1738256643882,0.46146602,105540.0,105530.0,0.189527]
[1738256644082,0.35868774,105540.0,105530.0,0.219927]
[1738256644590,0.71948774,105540.0,105530.0,0.219927]
[1738256644986,0.82226602,105540.0,105530.0,0.219927]
[1738256645778,0.71948774,105540.0,105530.0,0.219927]
[1738256646984,0.77662763,105540.0,105530.0,0.219927]
[1738256647992,0.87940591,105540.0,105530.0,0.0304]
[1738256648184,0.77662763,105540.0,105530.0,0.0304]
[1738256648386,0.58711863,105540.0,105510.0,0.57296828]
[1738256648588,0.189528,105530.0,105520.0,0.29231128]
[1738256649592,0.77768163,105540.0,105530.0,0.189527]
[1738256649790,0.74960163,105540.0,105530.0,0.189527]
[1738256649990,0.41688163,105540.0,105530.0,0.29230528]
[1738256650296,0.38880163,105540.0,105530.0,0.29230528]
[1738256650485,0.38780163,105540.0,105530.0,0.29230528]
[1738256650790,0.38780163,105540.0,105530.0,0.26259048]
[1738256651585,0.38780163,105540.0,105530.0,0.29299048]
[1738256651786,0.38780163,105540.0,105530.0,0.1902122]
[1738256651986,0.39080163,105540.0,105530.0,0.1902122]
[1738256652287,0.39080163,105540.0,105530.0,0.29299048]
[1738256652488,0.38780163,105540.0,105530.0,0.29299048]
[1738256652686,0.44278665,105540.0,105530.0,0.29299048]
[1738256653693,0.44278665,105540.0,105530.0,0.1902122]
[1738256655690,0.44278665,105540.0,105530.0,0.29299048]
[1738256655997,0.44278665,105540.0,105530.0,0.1902122]
[1738256656587,0.44278665,105540.0,105530.0,0.29299048]
[1738256656990,0.38644242,105540.0,105530.0,0.29299048]
[1738256657190,0.38644242,105540.0,105530.0,0.1902122]
[1738256657996,0.74724242,105540.0,105530.0,0.1902122]
[1738256658499,0.38644242,105540.0,105530.0,0.29299048]
[1738256660400,0.2738808,105540.0,105530.0,0.29299048]
[1738256660601,0.2738808,105540.0,105530.0,0.1902122]
[1738256664396,0.2738808,105540.0,105510.0,0.30631064]
[1738256664397,0.189545,105520.0,105510.0,0.30631064]
[1738256664701,0.189545,105520.0,105510.0,0.44918892]
[1738256664908,0.189545,105520.0,105510.0,0.29902364]
[1738256665304,0.189545,105520.0,105510.0,0.40180192]
[1738256666005,0.189545,105520.0,105510.0,0.40280192]
[1738256666200,0.550345,105520.0,105510.0,0.30002364]
[1738256666708,0.550345,105520.0,105510.0,0.29902364]
[1738256667008,0.66290662,105520.0,105510.0,0.29902364]
[1738256667208,0.66290662,105520.0,105510.0,0.40180192]
[1738256668007,0.66290662,105520.0,105510.0,0.2917939]
[1738256669417,0.66290662,105520.0,105510.0,0.2613939]
[1738256669621,0.66290662,105520.0,105510.0,0.2212939]
[1738256670321,0.67051212,105520.0,105510.0,0.2212939]
[1738256670716,0.7732904,105520.0,105510.0,0.2212939]
[1738256671016,0.67051212,105520.0,105510.0,0.2212939]
[1738256671416,0.86749497,105520.0,105510.0,0.2212939]
[1738256672522,0.86749497,105520.0,105510.0,0.0001419]
[1738256672523,0.97027325,105520.0,105510.0,0.0001419]
[1738256673319,0.78072825,105520.0,105500.0,0.1643169]
[1738256673518,0.578163,105510.0,105500.0,0.26709518]
[1738256674423,0.550363,105510.0,105500.0,0.1643169]
[1738256674624,0.578123,105510.0,105500.0,0.1643169]
[1738256674919,0.38856,105510.0,105490.0,0.22576584]
[1738256675123,0.65315928,105500.0,105490.0,0.30472074]
[1738256675317,0.550381,105500.0,105490.0,0.30472074]
[1738256675818,0.550381,105500.0,105490.0,0.11512174]
[1738256676018,0.550381,105500.0,105490.0,0.11712174]
[1738256676419,0.551381,105500.0,105490.0,0.12212174]
[1738256676620,0.65415928,105500.0,105490.0,0.007]
[1738256676825,0.65415928,105500.0,105490.0,0.005]
[1738256677025,0.65415928,105500.0,105490.0,0.007]
[1738256677427,0.551381,105500.0,105490.0,0.007]
[1738256678130,0.65415928,105500.0,105490.0,0.007]
[1738256679924,0.66192189,105500.0,105490.0,0.007]
[1738256680629,0.74621029,105500.0,105490.0,0.007]
[1738256681329,0.189617,105480.0,105470.0,0.263229]
[1738256681530,0.578097,105480.0,105470.0,0.263229]
[1738256682325,0.578097,105480.0,105470.0,0.263235]
[1738256682532,0.579097,105480.0,105470.0,0.0826]
[1738256682833,0.579097,105480.0,105470.0,0.272235]
[1738256683233,0.579097,105480.0,105470.0,0.268235]
[1738256683434,0.579097,105480.0,105470.0,0.271235]
[1738256684134,0.579097,105480.0,105470.0,0.37401328]
[1738256684929,0.551417,105480.0,105470.0,0.37401328]
[1738256685127,0.001,105480.0,105470.0,0.37401328]
[1738256685330,0.001,105480.0,105470.0,0.83759156]
[1738256685536,0.0844303,105490.0,105470.0,0.83759156]
[1738256685537,0.0844303,105490.0,105480.0,0.189617]
[1738256685735,0.0844303,105490.0,105480.0,0.75597356]
[1738256685926,0.0844303,105490.0,105480.0,0.65319528]
[1738256685927,0.0001419,105490.0,105480.0,0.65319528]
[1738256686128,0.1897409,105490.0,105480.0,0.65319528]
[1738256686322,0.0001419,105490.0,105480.0,0.65319528]
[1738256686733,0.0001419,105490.0,105480.0,0.65419528]
[1738256687034,0.0011419,105490.0,105480.0,0.65419528]
[1738256688035,0.1907409,105490.0,105480.0,0.551417]
[1738256688331,0.1907409,105490.0,105480.0,0.3618]
[1738256688538,0.68195918,105490.0,105480.0,0.190617]
[1738256688835,0.68195918,105490.0,105480.0,0.001]
[1738256689036,1.04275918,105490.0,105480.0,0.001]
[1738256691940,0.9399809,105490.0,105480.0,0.001]
[1738256692142,0.9399809,105490.0,105480.0,0.190617]
[1738256692439,0.32115918,105490.0,105480.0,0.190617]
[1738256692648,0.68195918,105490.0,105480.0,0.190617]
[1738256693243,0.5791809,105490.0,105480.0,0.190617]
[1738256693433,0.2183809,105490.0,105480.0,0.190617]
[1738256693634,0.41467067,105490.0,105480.0,0.190617]
[1738256694136,0.38703067,105490.0,105480.0,0.190617]
[1738256694933,0.38703067,105490.0,105480.0,0.230117]
[1738256696345,0.48980895,105490.0,105480.0,0.230117]
[1738256696648,0.85060895,105490.0,105480.0,0.230117]
[1738256696950,0.74783067,105490.0,105480.0,0.230117]
[1738256697339,0.38703067,105490.0,105480.0,0.230117]
[1738256698245,0.19743167,105490.0,105480.0,0.69369528]
[1738256699546,0.07283167,105490.0,105480.0,1.23415356]
[1738256699843,0.14020698,105500.0,105490.0,0.189599]
[1738256700043,0.14020698,105500.0,105490.0,0.65317728]
[1738256700745,0.14020698,105500.0,105490.0,0.68085728]
[1738256700939,0.14020698,105500.0,105490.0,0.71825728]
[1738256701535,0.32991488,105510.0,105490.0,0.50197828]
[1738256701739,0.4424109,105510.0,105500.0,0.29235928]
[1738256702661,0.4424109,105510.0,105500.0,0.189581]
[1738256703148,0.54518918,105510.0,105500.0,0.189581]
[1738256703539,0.4424109,105510.0,105500.0,0.189581]
[1738256705850,0.30220392,105510.0,105500.0,0.189581]
[1738256706049,0.30220392,105510.0,105500.0,0.29235928]
[1738256706950,0.66300392,105510.0,105500.0,0.189581]
[1738256707147,0.189581,105500.0,105490.0,0.32977528]
[1738256707448,0.189599,105490.0,105480.0,0.33203018]
[1738256707752,0.36892992,105510.0,105500.0,0.189581]
[1738256708051,0.72972992,105510.0,105500.0,0.29235928]
[1738256708444,0.34120992,105510.0,105500.0,0.29235928]
[1738256708641,0.30220992,105510.0,105500.0,0.29235928]
[1738256708845,0.49816926,105510.0,105500.0,0.29235928]
[1738256709451,0.49916926,105510.0,105500.0,0.29235928]
[1738256710045,0.49916926,105510.0,105500.0,0.189581]
[1738256711045,0.49916926,105510.0,105500.0,0.29235928]
[1738256712146,0.33092088,105510.0,105500.0,0.29235928]
[1738256712351,0.1907139,105510.0,105500.0,0.29235928]
[1738256712548,0.0011419,105510.0,105500.0,0.65315928]
[1738256712748,0.0011419,105510.0,105500.0,0.81593756]
[1738256712952,0.14020698,105520.0,105510.0,0.189563]
[1738256713155,0.14020698,105520.0,105510.0,0.86107956]
[1738256713446,0.14020698,105520.0,105510.0,0.89947956]
[1738256714546,0.14320698,105520.0,105510.0,0.89947956]
[1738256714946,0.14520698,105520.0,105510.0,0.89947956]
[1738256716057,0.005,105520.0,105510.0,0.89947956]
[1738256721450,0.005,105520.0,105510.0,0.907804]
[1738256722158,0.005,105520.0,105510.0,0.880044]
[1738256722356,0.005,105520.0,105510.0,0.907524]
[1738256726063,0.005,105520.0,105510.0,0.957524]
[1738256728758,0.005,105520.0,105510.0,0.907524]
[1738256732355,0.005,105520.0,105510.0,0.880044]
[1738256732552,0.0001419,105530.0,105510.0,0.767921]
[1738256732768,0.0001419,105530.0,105520.0,0.65312428]
[1738256733265,0.0001419,105530.0,105520.0,0.68052428]
[1738256734059,0.0011419,105530.0,105520.0,0.68052428]
[1738256734660,0.0041419,105530.0,105520.0,0.68052428]
[1738256734863,0.0051419,105530.0,105520.0,0.68052428]
[1738256735065,0.0051419,105530.0,105520.0,0.65312428]
[1738256735264,0.0021419,105530.0,105520.0,0.65312428]
[1738256735467,0.0081419,105530.0,105520.0,0.65412428]
[1738256738066,0.0081419,105530.0,105520.0,0.70412428]
[1738256738371,0.14020698,105540.0,105530.0,0.189528]
[1738256738671,0.14020698,105540.0,105530.0,0.89270456]
[1738256739064,0.14020698,105540.0,105530.0,2.39270456]
[1738256739257,0.14020698,105540.0,105530.0,0.94270456]
[1738256739464,0.14920698,105540.0,105530.0,0.94370456]
[1738256739669,0.14920698,105540.0,105530.0,2.44370456]
[1738256740182,0.14920698,105540.0,105530.0,2.39370456]
[1738256740871,0.15220698,105540.0,105530.0,2.39370456]
[1738256741063,0.14320698,105540.0,105530.0,2.39370456]
[1738256741368,0.14320698,105540.0,105530.0,2.53614393]
[1738256741369,0.003,105540.0,105530.0,2.53614393]
[1738256741668,0.1896409,105550.0,105540.0,0.18951]
[1738256741862,0.2260409,105550.0,105540.0,0.65308828]
[1738256742767,0.0365419,105550.0,105540.0,0.75586656]
[1738256742971,0.0001419,105550.0,105540.0,0.75586656]
[1738256743163,0.0001419,105550.0,105540.0,0.78314656]
[1738256743971,0.0011419,105550.0,105540.0,0.78314656]
[1738256744278,0.0031419,105550.0,105540.0,0.68036828]
[1738256745169,0.0031419,105550.0,105540.0,0.78314656]
[1738256745469,0.0031419,105550.0,105540.0,0.85012765]
[1738256746274,0.0031419,105550.0,105540.0,0.95290593]
[1738256746974,0.0031419,105550.0,105540.0,0.96124176]
[1738256748273,0.0031419,105550.0,105540.0,0.93396176]
[1738256748473,0.1926339,105550.0,105540.0,0.47038348]
[1738256748775,0.2302339,105550.0,105540.0,0.83118348]
[1738256749170,0.2302339,105550.0,105540.0,0.93396176]
[1738256749568,0.2302339,105550.0,105540.0,0.83118348]
[1738256749775,0.2302339,105550.0,105540.0,0.93396176]
[1738256751077,0.0407419,105550.0,105540.0,0.93396176]
[1738256751579,0.2302339,105550.0,105540.0,0.83118348]
[1738256751981,0.69381218,105550.0,105540.0,0.1780952]
[1738256752169,0.2302339,105550.0,105540.0,0.16975937]
[1738256752374,0.2302339,105550.0,105540.0,0.35926937]
[1738256752582,0.2302339,105550.0,105540.0,0.46204765]
[1738256752884,0.2302339,105550.0,105540.0,0.29228828]
[1738256754075,0.2574339,105550.0,105540.0,0.29228828]
[1738256754275,0.2574339,105550.0,105530.0,0.53911062]
[1738256754276,0.18951,105540.0,105530.0,0.8314089]
[1738256754476,0.26411,105540.0,105530.0,0.46205765]
[1738256754676,0.62491,105540.0,105530.0,0.16975937]
[1738256754879,0.65223,105540.0,105530.0,0.16975937]
[1738256755483,0.75500828,105540.0,105530.0,0.16975937]
[1738256756977,0.75500828,105540.0,105530.0,0.17075937]
[1738256757581,0.189528,105530.0,105520.0,0.00027979]
[1738256757880,0.65310628,105530.0,105520.0,0.00027979]
[1738256758585,0.65310628,105530.0,105520.0,0.00127979]
[1738256761484,0.80145366,105530.0,105520.0,0.00014681]
[1738256763388,0.90588682,105530.0,105520.0,0.00014681]
[1738256764286,0.90588682,105530.0,105510.0,0.0001419]
[1738256764287,0.189546,105520.0,105510.0,0.0001419]
[1738256764586,0.189564,105510.0,105500.0,0.00142136]
[1738256764888,0.65314228,105510.0,105500.0,0.00142136]
[1738256765781,0.189582,105500.0,105490.0,0.1897389]
[1738256765982,0.262082,105500.0,105490.0,0.1897389]
[1738256766179,0.289322,105500.0,105490.0,0.1897389]
[1738256766485,0.75290028,105500.0,105490.0,0.0001419]
[1738256766887,0.75290028,105500.0,105490.0,0.0031419]
[1738256767482,0.75390028,105500.0,105490.0,0.0121419]
[1738256768991,0.86431828,105500.0,105470.0,0.16975937]
[1738256769291,0.86431828,105500.0,105450.0,0.98258179]
[1738256769292,0.189654,105460.0,105450.0,0.62178179]
[1738256769485,1.04147228,105460.0,105450.0,0.62178179]
[1738256769983,1.14425056,105460.0,105450.0,0.38171918]
[1738256770195,1.07947228,105460.0,105450.0,0.38171918]
[1738256770787,1.07947228,105460.0,105450.0,0.38471918]
[1738256771597,0.588454,105460.0,105450.0,0.38471918]
[1738256771986,0.615894,105460.0,105450.0,0.38471918]
[1738256772186,0.69123228,105460.0,105450.0,0.38571918]
[1738256772391,0.69980166,105460.0,105450.0,0.38571918]
[1738256772895,0.72728166,105460.0,105450.0,0.38571918]
[1738256773196,0.83958857,105460.0,105450.0,0.004]
[1738256773593,0.33801029,105460.0,105450.0,0.10677828]
[1738256773785,0.33801029,105460.0,105450.0,0.193672]
[1738256774091,0.44078857,105460.0,105450.0,0.193672]
[1738256774798,0.41334857,105460.0,105450.0,0.193672]
[1738256775898,0.30100166,105460.0,105450.0,0.193672]
[1738256776195,0.66180166,105460.0,105450.0,0.004]
[1738256780093,0.189672,105450.0,105440.0,0.22707713]
[1738256780299,0.31983828,105460.0,105450.0,0.224472]
[1738256780495,0.29243828,105460.0,105450.0,0.224472]
[1738256780694,0.29243828,105460.0,105450.0,0.260172]
[1738256781294,0.65323828,105460.0,105450.0,0.260172]
[1738256781494,0.65323828,105460.0,105450.0,0.0705]
[1738256782197,0.65323828,105460.0,105450.0,0.0348]
[1738256783100,0.65323828,105460.0,105450.0,0.0358]
[1738256784203,0.68059828,105460.0,105450.0,0.0358]
[1738256785396,0.68059828,105460.0,105450.0,0.225472]
[1738256786394,0.68059828,105460.0,105450.0,0.0358]
[1738256788002,0.189717,105430.0,105420.0,0.189718]
[1738256788205,0.189717,105430.0,105420.0,0.298518]
[1738256788404,0.189717,105430.0,105420.0,0.40129628]
[1738256788609,0.189717,105430.0,105420.0,0.298518]
[1738256788805,0.550517,105430.0,105420.0,0.298518]
[1738256789109,0.65329528,105430.0,105420.0,0.1088]
[1738256789297,0.65329528,105430.0,105420.0,0.004]
[1738256789504,0.65429528,105430.0,105420.0,0.004]
[1738256789802,0.68165528,105430.0,105420.0,0.004]
[1738256790105,0.65429528,105430.0,105420.0,0.004]
[1738256790309,0.68165528,105430.0,105420.0,0.004]
[1738256791199,0.189725,105420.0,105410.0,0.0386]
[1738256791405,0.65330328,105420.0,105410.0,0.0386]
[1738256791906,0.75608156,105420.0,105410.0,0.0386]
[1738256792317,0.75608156,105420.0,105400.0,0.17162309]
[1738256792318,0.189743,105410.0,105400.0,0.17162309]
[1738256792502,0.68064128,105410.0,105400.0,0.17162309]
[1738256793308,0.68064128,105410.0,105400.0,0.1]
[1738256793512,0.71564128,105410.0,105400.0,0.1]
[1738256793810,0.71664128,105410.0,105400.0,0.1]
[1738256794196,0.62967656,105410.0,105380.0,0.0385]
[1738256794405,0.189798,105380.0,105370.0,0.32042809]
[1738256794612,0.65337628,105380.0,105370.0,0.32042809]
[1738256795306,0.65337628,105380.0,105370.0,0.51024409]
[1738256795908,0.68177628,105380.0,105370.0,0.51024409]
[1738256796114,0.65537628,105380.0,105370.0,0.51024409]
[1738256796410,0.002,105380.0,105370.0,0.51024409]
[1738256797412,0.10477828,105380.0,105370.0,0.51024409]
[1738256797812,0.002,105380.0,105370.0,0.51024409]
[1738256798117,0.002,105380.0,105370.0,0.87104409]
[1738256798307,0.002,105380.0,105370.0,0.97382237]
[1738256799808,0.002,105380.0,105370.0,0.87104409]
[1738256800705,0.002,105380.0,105370.0,0.588416]
[1738256800905,0.10477828,105380.0,105370.0,0.588416]
[1738256801112,0.002,105380.0,105370.0,0.588416]
[1738256801316,0.10477828,105380.0,105370.0,0.588416]
[1738256801906,0.29457628,105380.0,105370.0,0.588416]
[1738256802426,0.29457628,105380.0,105370.0,0.227616]
[1738256802911,0.29457628,105380.0,105370.0,0.189816]
[1738256804509,0.191798,105380.0,105370.0,0.189816]
[1738256805109,0.29457628,105380.0,105370.0,0.189816]
[1738256805309,0.191798,105380.0,105370.0,0.189816]
[1738256807509,0.29457628,105380.0,105370.0,0.189816]
[1738256808608,0.191798,105380.0,105370.0,0.189816]
[1738256810912,0.191798,105380.0,105370.0,0.01722838]
[1738256811216,0.191798,105380.0,105370.0,0.65339428]
[1738256811517,0.191798,105380.0,105370.0,0.550616]
[1738256812713,0.191798,105380.0,105370.0,0.65339428]
[1738256813122,0.191798,105380.0,105370.0,0.550616]
[1738256813312,0.191798,105380.0,105370.0,0.65339428]
[1738256813515,0.002,105380.0,105370.0,0.65339428]
[1738256813821,0.002,105380.0,105370.0,0.68087428]
[1738256814212,0.002,105380.0,105370.0,0.73087428]
[1738256814711,0.25254194,105390.0,105380.0,0.189798]
[1738256815023,0.25254194,105390.0,105380.0,0.72447628]
[1738256815209,0.25254194,105390.0,105380.0,0.78447628]
[1738256815414,0.00142389,105410.0,105380.0,0.74490456]
[1738256815721,0.189726,105420.0,105410.0,0.189727]
[1738256816018,0.189726,105420.0,105410.0,0.586727]
[1738256816219,0.29250428,105420.0,105410.0,0.586727]
[1738256816820,0.189726,105420.0,105410.0,0.586727]
[1738256817416,0.189726,105420.0,105410.0,0.620627]
[1738256818317,0.198726,105420.0,105410.0,0.620627]
[1738256818622,0.30150428,105420.0,105410.0,0.550527]
[1738256819512,0.198726,105420.0,105410.0,0.550527]
[1738256819922,0.11177828,105420.0,105400.0,0.4681419]
[1738256820112,0.29252128,105410.0,105400.0,0.2252979]
[1738256820317,0.32822128,105410.0,105400.0,0.0001419]
[1738256820516,0.71642128,105410.0,105400.0,0.0001419]
[1738256820814,0.71642128,105410.0,105370.0,0.28262809]
[1738256820815,0.189798,105380.0,105370.0,0.28262809]
[1738256821018,0.68081628,105380.0,105370.0,0.28262809]
[1738256821421,0.550598,105380.0,105370.0,0.28262809]
[1738256821621,0.578038,105380.0,105370.0,0.28262809]
[1738256821821,0.68081628,105380.0,105370.0,0.28262809]
[1738256822126,0.32001628,105380.0,105370.0,0.28262809]
[1738256822615,0.68181628,105380.0,105370.0,0.28262809]
[1738256823625,0.69056063,105380.0,105370.0,0.28262809]
[1738256823825,0.32976063,105380.0,105370.0,0.28262809]
[1738256824124,0.69056063,105380.0,105370.0,0.28262809]
[1738256824525,0.50076263,105380.0,105350.0,0.68872528]
[1738256824828,0.189834,105360.0,105350.0,0.68872528]
[1738256825030,0.189834,105360.0,105350.0,0.585947]
[1738256825331,0.1899659,105370.0,105360.0,0.189834]
[1738256825625,0.29274418,105370.0,105360.0,0.189834]
[1738256825921,0.189834,105360.0,105350.0,0.225144]
[1738256826127,0.189834,105360.0,105350.0,0.585944]
[1738256826725,0.189834,105360.0,105350.0,0.587944]
[1738256827222,0.5507649,105370.0,105360.0,0.189834]
[1738256827429,0.1899649,105370.0,105360.0,0.65341228]
[1738256827623,0.29274318,105370.0,105360.0,0.189834]
[1738256828329,0.29274318,105370.0,105360.0,0.190834]
[1738256829817,0.29274318,105370.0,105360.0,0.001]
[1738256829818,0.65354318,105370.0,105360.0,0.001]
[1738256831421,0.1899649,105370.0,105360.0,0.190833]
[1738256831626,0.1899649,105370.0,105360.0,0.65441128]
[1738256832427,0.18979,105390.0,105380.0,0.189787]
[1738256832629,0.18979,105390.0,105380.0,0.65336528]
[1738256832830,0.18979,105390.0,105380.0,0.585087]
[1738256833129,0.00893157,105400.0,105380.0,0.49807828]
[1738256833329,0.00893157,105400.0,105390.0,0.189767]
[1738256833330,0.29254628,105400.0,105390.0,0.189767]
[1738256833522,0.29268818,105400.0,105390.0,0.189767]
[1738256834432,0.29468818,105400.0,105390.0,0.189767]
[1738256834737,0.30168818,105400.0,105390.0,0.189767]
[1738256835424,0.29868818,105400.0,105390.0,0.550567]
[1738256835727,0.1959099,105400.0,105390.0,0.550567]
[1738256836632,0.1949099,105400.0,105390.0,0.550567]
[1738256837132,0.1919099,105400.0,105390.0,0.550567]
[1738256837329,0.39341611,105410.0,105390.0,0.94467656]
[1738256837330,0.08422323,105410.0,105390.0,0.94467656]
[1738256837524,0.00042,105420.0,105410.0,0.189743]
[1738256837831,0.00042,105420.0,105410.0,0.71496128]
[1738256838734,0.00742,105420.0,105410.0,0.71496128]
[1738256839725,0.00742,105420.0,105410.0,0.81773956]
[1738256840524,0.00742,105420.0,105410.0,0.85385956]
[1738256840730,0.00742,105420.0,105410.0,0.75104128]
[1738256840936,0.00942,105420.0,105410.0,0.75104128]
[1738256841132,0.00942,105420.0,105410.0,0.72272128]
[1738256841637,0.199145,105420.0,105410.0,0.72272128]
[1738256841835,0.00942,105420.0,105410.0,0.72272128]
[1738256842033,0.00942,105420.0,105410.0,0.75100128]
[1738256843031,0.199145,105420.0,105410.0,0.75100128]
[1738256843225,0.198725,105420.0,105410.0,0.75096128]
[1738256843839,0.198725,105420.0,105410.0,0.36192128]
[1738256844038,0.198725,105420.0,105410.0,0.72272128]
[1738256847030,0.559525,105420.0,105410.0,0.17217828]
[1738256847225,0.189743,105410.0,105400.0,0.13942018]
[1738256847641,0.189743,105410.0,105400.0,0.68998118]
[1738256848333,0.193743,105410.0,105400.0,0.68998118]
[1738256849837,0.194743,105410.0,105400.0,0.68998118]
[1738256851231,0.555543,105410.0,105400.0,0.13942018]
[1738256852034,0.555543,105410.0,105400.0,0.32918118]
[1738256852944,0.194743,105410.0,105400.0,0.32918118]
[1738256853440,0.194743,105410.0,105400.0,0.68998118]
[1738256853742,0.005,105410.0,105400.0,0.68998118]
[1738256854243,0.194743,105410.0,105400.0,2.18998118]
[1738256854641,0.194743,105410.0,105400.0,0.68998118]
[1738256855443,0.005,105410.0,105400.0,0.68998118]
[1738256855649,0.005,105410.0,105400.0,0.71802118]
[1738256856146,0.1898499,105430.0,105420.0,0.189725]
[1738256856343,0.1898499,105430.0,105420.0,0.65330328]
[1738256856533,0.1898499,105430.0,105420.0,0.72410328]
[1738256857233,0.1928499,105430.0,105420.0,0.72410328]
[1738256857849,0.2018499,105430.0,105420.0,0.72410328]
[1738256859448,0.0121419,105430.0,105420.0,0.72410328]
[1738256861848,0.0121419,105430.0,105420.0,1.21568156]
[1738256862048,0.189675,105450.0,105420.0,1.02595656]
[1738256862238,0.49935125,105460.0,105450.0,0.189671]
[1738256862443,0.35935105,105460.0,105450.0,0.29244928]
[1738256862742,0.35935105,105460.0,105450.0,0.72164928]
[1738256863544,0.16968905,105460.0,105450.0,0.72164928]
[1738256863937,0.17368905,105460.0,105450.0,0.72164928]
[1738256864142,0.36334205,105460.0,105450.0,0.72164928]
[1738256864343,0.36434205,105460.0,105450.0,0.72164928]
[1738256864651,0.17468905,105460.0,105450.0,0.72164928]
[1738256864840,0.17468905,105460.0,105450.0,0.82442756]
[1738256865443,0.17468905,105460.0,105450.0,0.72164928]
[1738256867452,0.36434205,105460.0,105450.0,0.618871]
[1738256868751,0.36434205,105460.0,105450.0,0.72164928]
[1738256869843,0.17468905,105460.0,105450.0,0.72164928]
[1738256870147,0.17468905,105460.0,105450.0,0.82442756]
[1738256871756,0.17326587,105460.0,105450.0,0.82442756]
[1738256871955,0.17326587,105460.0,105450.0,0.72164928]
[1738256873053,0.36291887,105460.0,105450.0,0.72164928]
[1738256874854,0.36291887,105460.0,105450.0,0.258071]
[1738256875050,0.36291887,105460.0,105450.0,0.36084928]
[1738256875246,0.194653,105460.0,105450.0,0.72164928]
[1738256877256,0.194653,105460.0,105450.0,0.618871]
[1738256878054,0.194653,105460.0,105450.0,0.72164928]
[1738256883863,0.50350689,105460.0,105450.0,0.72164928]
[1738256884157,0.31385389,105460.0,105450.0,0.72164928]
[1738256884366,0.31385389,105460.0,105450.0,0.92442756]
[1738256884560,0.25815389,105460.0,105450.0,0.92442756]
[1738256884763,0.0001419,105470.0,105460.0,0.189653]
[1738256884952,0.51042202,105500.0,105490.0,0.189599]
[1738256885271,0.51042202,105500.0,105490.0,0.28275821]
[1738256885450,0.51042202,105500.0,105490.0,0.261599]
[1738256886265,0.48286946,105500.0,105490.0,0.36437728]
[1738256886764,0.47402202,105500.0,105490.0,0.72517728]
[1738256887660,0.48802202,105500.0,105490.0,0.72617728]
[1738256887967,0.48802202,105500.0,105490.0,0.36537728]
[1738256887968,0.30501252,105500.0,105490.0,0.36537728]
[1738256888267,0.7685908,105500.0,105490.0,0.001]
[1738256888469,0.8300908,105500.0,105490.0,0.001]
[1738256889367,0.6405008,105500.0,105480.0,0.29253618]
[1738256889568,0.189599,105490.0,105480.0,0.1897579]
[1738256890759,0.197599,105490.0,105480.0,0.1907579]
[1738256891672,0.200599,105490.0,105480.0,0.1907579]
[1738256893372,0.200599,105490.0,105480.0,0.29353618]
[1738256894676,0.200599,105490.0,105480.0,0.75711446]
[1738256894865,0.200599,105490.0,105480.0,0.65433618]
[1738256895174,0.011,105490.0,105480.0,0.29353618]
[1738256895361,0.200599,105490.0,105480.0,0.29353618]
[1738256896462,0.200599,105490.0,105480.0,0.65433618]
[1738256896861,0.200599,105490.0,105480.0,0.66349728]
[1738256897073,0.31310282,105490.0,105480.0,0.66349728]
[1738256897661,0.31310282,105490.0,105480.0,0.65433618]
[1738256898071,0.31310282,105490.0,105480.0,0.29353618]
[1738256900169,0.67390282,105490.0,105480.0,0.0011419]
[1738256900375,0.8041611,105490.0,105480.0,0.0011419]
[1738256900564,0.8738611,105490.0,105480.0,0.0011419]
[1738256901267,0.76135728,105490.0,105480.0,0.0011419]
[1738256901761,0.73387728,105490.0,105480.0,0.0011419]
[1738256901962,0.011,105490.0,105480.0,0.29353718]
[1738256902275,0.011,105490.0,105480.0,0.84061546]
[1738256902474,0.011,105490.0,105480.0,0.79061546]
[1738256903571,0.008,105490.0,105480.0,0.79061546]
[1738256903773,0.007,105490.0,105480.0,0.78961546]
[1738256905072,0.007,105490.0,105480.0,0.68683718]
[1738256905277,0.007,105490.0,105480.0,0.78961546]
[1738256905473,0.007,105490.0,105480.0,1.18616773]
[1738256905674,0.007,105490.0,105480.0,1.09251003]
[1738256905974,0.196599,105490.0,105480.0,1.09251003]